[Event "*** Titled Tuesday Blitz"]
[Site "Chess.com"]
[Date "2020.10.20"]
[Round "10"]
[White "ChristopherYoo"]
[Black "ChessQueen"]
[Result "0-1"]
[WhiteElo "2832"]
[BlackElo "2731"]
[TimeControl "180+1"]
[EndTime "11:57:58 PDT"]
[Termination "ChessQueen won on time"]

1. Nf3 {[%clk 0:02:49.4]} 1... Nf6 {[%clk 0:02:59.6]} 2. c4 {[%clk 0:02:49.1]}
2... b6 {[%clk 0:02:59.5]} 3. g3 {[%clk 0:02:47.3]} 3... Bb7 {[%clk 0:02:59.6]}
4. Bg2 {[%clk 0:02:47.6]} 4... e6 {[%clk 0:03:00.1]} 5. O-O {[%clk 0:02:47.6]}
5... Be7 {[%clk 0:03:00.6]} 6. d4 {[%clk 0:02:45.8]} 6... O-O {[%clk 0:03:00.3]}
7. Nc3 {[%clk 0:02:43.5]} 7... Ne4 {[%clk 0:03:00]} 8. Bd2 {[%clk 0:02:43.4]}
8... d5 {[%clk 0:02:57.5]} 9. cxd5 {[%clk 0:02:35.9]} 9... exd5 {[%clk
0:02:57.2]} 10. Bf4 {[%clk 0:02:32.8]} 10... c5 {[%clk 0:02:53]} 11. Rc1 {[%clk
0:02:30.9]} 11... Na6 {[%clk 0:02:50.9]} 12. dxc5 {[%clk 0:02:27.5]} 12... Naxc5
{[%clk 0:02:49.6]} 13. Be5 {[%clk 0:02:04.2]} 13... Qd7 {[%clk 0:02:44.1]} 14.
Bd4 {[%clk 0:01:59.5]} 14... Rac8 {[%clk 0:02:34.2]} 15. Ne5 {[%clk 0:01:49.3]}
15... Qe6 {[%clk 0:02:34.1]} 16. Nd3 {[%clk 0:01:31.8]} 16... Bg5 {[%clk
0:02:10.6]} 17. Rc2 {[%clk 0:01:25.3]} 17... Ba6 {[%clk 0:02:06.6]} 18. Nb4
{[%clk 0:01:21.3]} 18... Bb7 {[%clk 0:02:02]} 19. Bxc5 {[%clk 0:01:01.7]} 19...
Rxc5 {[%clk 0:01:53.7]} 20. Ncxd5 {[%clk 0:00:28.6]} 20... Rxd5 {[%clk
0:01:46.4]} 21. Nxd5 {[%clk 0:00:28.1]} 21... Bxd5 {[%clk 0:01:45.2]} 22. Qd3
{[%clk 0:00:19.7]} 22... Ba8 {[%clk 0:01:08.4]} 23. Qb5 {[%clk 0:00:09.3]} 23...
Bh6 {[%clk 0:01:00]} 24. Rd1 {[%clk 0:00:08.8]} 24... g6 {[%clk 0:00:52]} 25.
Bf3 {[%clk 0:00:08.2]} 25... Qxa2 {[%clk 0:00:42.3]} 26. Qb4 {[%clk 0:00:01.4]}
26... Nc5 {[%clk 0:00:38.7]} 27. Bxa8 {[%clk 0:00:02]} 27... Rxa8 {[%clk
0:00:39.2]} 28. Qh4 {[%clk 0:00:01.5]} 28... Bf8 {[%clk 0:00:37]} 29. Qf6 {[%clk
0:00:01.2]} 29... Qb3 {[%clk 0:00:35.5]} 30. Rcd2 {[%clk 0:00:01.2]} 30... Qe6
{[%clk 0:00:32.1]} 31. Qf3 {[%clk 0:00:01.3]} 31... Re8 {[%clk 0:00:28.6]} 32.
e3 {[%clk 0:00:01.8]} 32... Ne4 {[%clk 0:00:26]} 33. Rd4 {[%clk 0:00:01.9]}
33... Bc5 {[%clk 0:00:24.5]} 34. Rd5 {[%clk 0:00:02.2]} 34... Kg7 {[%clk
0:00:22.6]} 35. h4 {[%clk 0:00:01.8]} 35... h5 {[%clk 0:00:22.4]} 0-1

[Event "*** Titled Tuesday Blitz"]
[Site "Chess.com"]
[Date "2020.10.20"]
[Round "10"]
[White "GalperinPlaton"]
[Black "Shubinkirill2003"]
[Result "1-0"]
[WhiteElo "2840"]
[BlackElo "2667"]
[TimeControl "180+1"]
[EndTime "11:57:58 PDT"]
[Termination "GalperinPlaton won by checkmate"]

1. h4 {[%clk 0:03:00.9]} 1... Nf6 {[%clk 0:02:58.5]} 2. Nh3 {[%clk 0:03:01.4]}
2... d5 {[%clk 0:02:57.5]} 3. g3 {[%clk 0:03:01.9]} 3... e5 {[%clk 0:02:56.6]}
4. Bg2 {[%clk 0:03:02.5]} 4... Nc6 {[%clk 0:02:53.7]} 5. d3 {[%clk 0:02:58.3]}
5... Be7 {[%clk 0:02:53.2]} 6. Nd2 {[%clk 0:02:58.5]} 6... O-O {[%clk
0:02:52.8]} 7. c4 {[%clk 0:02:58.3]} 7... dxc4 {[%clk 0:02:49.4]} 8. Nxc4 {[%clk
0:02:59.2]} 8... Be6 {[%clk 0:02:43.5]} 9. b3 {[%clk 0:02:56.8]} 9... Bd5 {[%clk
0:02:38.4]} 10. O-O {[%clk 0:02:52.6]} 10... Bxg2 {[%clk 0:02:36.1]} 11. Kxg2
{[%clk 0:02:53.5]} 11... Nd5 {[%clk 0:02:24.3]} 12. Bb2 {[%clk 0:02:41]} 12...
f6 {[%clk 0:02:23.7]} 13. a3 {[%clk 0:02:31.3]} 13... a5 {[%clk 0:02:18.1]} 14.
e4 {[%clk 0:02:28.2]} 14... Nb6 {[%clk 0:02:11.4]} 15. f4 {[%clk 0:02:14.9]}
15... Nxc4 {[%clk 0:02:04.1]} 16. dxc4 {[%clk 0:02:14.4]} 16... Nd4 {[%clk
0:01:58.7]} 17. fxe5 {[%clk 0:01:44.9]} 17... fxe5 {[%clk 0:01:59.6]} 18. Qg4
{[%clk 0:01:44.1]} 18... Bf6 {[%clk 0:01:52.7]} 19. Rad1 {[%clk 0:01:35.4]}
19... c5 {[%clk 0:01:50.8]} 20. Rd3 {[%clk 0:01:27.6]} 20... Qb6 {[%clk
0:01:42]} 21. Bxd4 {[%clk 0:01:26.7]} 21... cxd4 {[%clk 0:01:38.4]} 22. Rdf3
{[%clk 0:01:25.2]} 22... Rad8 {[%clk 0:01:22.1]} 23. Nf2 {[%clk 0:01:12]} 23...
a4 {[%clk 0:01:12.4]} 24. b4 {[%clk 0:01:10.5]} 24... Qc6 {[%clk 0:01:06.9]} 25.
c5 {[%clk 0:01:10.6]} 25... Kh8 {[%clk 0:00:44.9]} 26. Nd3 {[%clk 0:01:08.3]}
26... Rg8 {[%clk 0:00:35.3]} 27. Rf5 {[%clk 0:01:04.1]} 27... Qb5 {[%clk
0:00:34.7]} 28. R1f3 {[%clk 0:00:58.9]} 28... Rge8 {[%clk 0:00:28]} 29. h5
{[%clk 0:00:50.5]} 29... Qc4 {[%clk 0:00:20]} 30. h6 {[%clk 0:00:49.9]} 30...
Rg8 {[%clk 0:00:19.9]} 31. hxg7+ {[%clk 0:00:37.4]} 31... Bxg7 {[%clk
0:00:15.3]} 32. Rh5 {[%clk 0:00:29.5]} 32... h6 {[%clk 0:00:14.1]} 33. Nxe5
{[%clk 0:00:22.1]} 33... Qe2+ {[%clk 0:00:10.2]} 34. Kh3 {[%clk 0:00:21.9]}
34... Qe1 {[%clk 0:00:05.7]} 35. Nf7+ {[%clk 0:00:21.6]} 35... Kh7 {[%clk
0:00:05.9]} 36. Qf5# {[%clk 0:00:22.5]} 1-0

[Event "*** Titled Tuesday Blitz"]
[Site "Chess.com"]
[Date "2020.10.20"]
[Round "10"]
[White "maxip32"]
[Black "tylityli"]
[Result "1-0"]
[WhiteElo "2438"]
[BlackElo "2246"]
[TimeControl "180+1"]
[EndTime "11:58:00 PDT"]
[Termination "maxip32 won on time"]

1. e4 {[%clk 0:03:00.9]} 1... e5 {[%clk 0:02:59.1]} 2. Nf3 {[%clk 0:03:00.8]}
2... Nc6 {[%clk 0:02:59.1]} 3. Bc4 {[%clk 0:03:01.5]} 3... Nf6 {[%clk
0:02:58.2]} 4. d3 {[%clk 0:03:01.8]} 4... Be7 {[%clk 0:02:57.9]} 5. O-O {[%clk
0:03:02.1]} 5... O-O {[%clk 0:02:57.9]} 6. Re1 {[%clk 0:03:02.8]} 6... d6 {[%clk
0:02:56]} 7. c3 {[%clk 0:03:03.2]} 7... Na5 {[%clk 0:02:47.1]} 8. Bb5 {[%clk
0:03:03.2]} 8... a6 {[%clk 0:02:46.5]} 9. Ba4 {[%clk 0:03:03.9]} 9... b5 {[%clk
0:02:46.6]} 10. Bc2 {[%clk 0:03:04.5]} 10... c5 {[%clk 0:02:46.6]} 11. Nbd2
{[%clk 0:03:04.7]} 11... Bb7 {[%clk 0:02:44.3]} 12. Nf1 {[%clk 0:03:01.4]} 12...
Rc8 {[%clk 0:02:43.3]} 13. Bg5 {[%clk 0:03:01.7]} 13... h6 {[%clk 0:02:42.3]}
14. Bxf6 {[%clk 0:03:01.4]} 14... Bxf6 {[%clk 0:02:42.4]} 15. Ne3 {[%clk
0:03:02.3]} 15... g6 {[%clk 0:02:41.7]} 16. a4 {[%clk 0:03:01.5]} 16... Bg7
{[%clk 0:02:40.8]} 17. axb5 {[%clk 0:02:58]} 17... axb5 {[%clk 0:02:41.7]} 18.
b4 {[%clk 0:02:58]} 18... Nc6 {[%clk 0:02:40]} 19. Nd5 {[%clk 0:02:56.9]} 19...
Ne7 {[%clk 0:02:35.8]} 20. Nxe7+ {[%clk 0:02:44.2]} 20... Qxe7 {[%clk
0:02:35.5]} 21. Bb3 {[%clk 0:02:31.2]} 21... Qc7 {[%clk 0:02:32.6]} 22. Nd2
{[%clk 0:02:26.2]} 22... Kh7 {[%clk 0:02:20.6]} 23. Nf1 {[%clk 0:02:21.2]} 23...
cxb4 {[%clk 0:02:13.1]} 24. cxb4 {[%clk 0:02:21.2]} 24... Qc3 {[%clk 0:02:13.2]}
25. Ra7 {[%clk 0:02:19.6]} 25... Rb8 {[%clk 0:01:36.6]} 26. Ne3 {[%clk
0:01:56.9]} 26... Qxb4 {[%clk 0:01:35]} 27. Bd5 {[%clk 0:01:57.4]} 27... Bxd5
{[%clk 0:01:27.4]} 28. Nxd5 {[%clk 0:01:58.3]} 28... Qd4 {[%clk 0:01:24.7]} 29.
Rd7 {[%clk 0:01:56.6]} 29... Rbd8 {[%clk 0:01:14.1]} 30. Rb7 {[%clk 0:01:56.1]}
30... Rb8 {[%clk 0:01:13.7]} 31. Rd7 {[%clk 0:01:56.5]} 31... Rbd8 {[%clk
0:01:13.5]} 32. Rxd8 {[%clk 0:01:33.2]} 32... Rxd8 {[%clk 0:01:12.5]} 33. Qb3
{[%clk 0:01:33.8]} 33... Rb8 {[%clk 0:01:07]} 34. Ne7 {[%clk 0:01:33.6]} 34...
Qa7 {[%clk 0:00:48.7]} 35. Nc6 {[%clk 0:01:24.9]} 35... Qb6 {[%clk 0:00:43.5]}
36. Nxb8 {[%clk 0:01:25]} 36... Qxb8 {[%clk 0:00:44.4]} 37. Rb1 {[%clk 0:01:25]}
37... f5 {[%clk 0:00:34.3]} 38. Qxb5 {[%clk 0:01:24.4]} 38... Qa7 {[%clk
0:00:29.7]} 39. g3 {[%clk 0:01:18.5]} 39... fxe4 {[%clk 0:00:27.1]} 40. dxe4
{[%clk 0:01:18.2]} 40... h5 {[%clk 0:00:26.7]} 41. Qd5 {[%clk 0:01:17.9]} 41...
Qe7 {[%clk 0:00:19.6]} 42. Rb7 {[%clk 0:01:16.8]} 42... Qf6 {[%clk 0:00:18.4]}
43. Rf7 {[%clk 0:01:11.4]} 43... Qd8 {[%clk 0:00:09.7]} 44. Qb7 {[%clk
0:01:09.8]} 44... Qg8 {[%clk 0:00:06]} 45. Rd7 {[%clk 0:01:09.1]} 45... Qf8
{[%clk 0:00:05.3]} 46. Qd5 {[%clk 0:01:05.4]} 46... Qf3 {[%clk 0:00:03]} 47. Qf7
{[%clk 0:00:55.8]} 1-0

[Event "*** Titled Tuesday Blitz"]
[Site "Chess.com"]
[Date "2020.10.20"]
[Round "10"]
[White "Euwe1234"]
[Black "ShapkinAnatoliy"]
[Result "1-0"]
[WhiteElo "2413"]
[BlackElo "2634"]
[TimeControl "180+1"]
[EndTime "11:58:01 PDT"]
[Termination "Euwe1234 won by checkmate"]

1. e4 {[%clk 0:03:00.9]} 1... e5 {[%clk 0:02:54.9]} 2. Nf3 {[%clk 0:03:00.9]}
2... Nc6 {[%clk 0:02:55.3]} 3. Bb5 {[%clk 0:03:00.8]} 3... Nf6 {[%clk
0:02:55.2]} 4. O-O {[%clk 0:02:59.5]} 4... Nxe4 {[%clk 0:02:55.4]} 5. d4 {[%clk
0:02:58.5]} 5... Nd6 {[%clk 0:02:55.9]} 6. Bxc6 {[%clk 0:02:58.5]} 6... dxc6
{[%clk 0:02:56.8]} 7. dxe5 {[%clk 0:02:59.4]} 7... Nf5 {[%clk 0:02:57.4]} 8.
Qxd8+ {[%clk 0:02:59.9]} 8... Kxd8 {[%clk 0:02:58.3]} 9. Rd1+ {[%clk 0:02:59]}
9... Ke8 {[%clk 0:02:58.3]} 10. h3 {[%clk 0:02:59.9]} 10... Ne7 {[%clk
0:02:58.3]} 11. c4 {[%clk 0:02:54.7]} 11... Ng6 {[%clk 0:02:57.9]} 12. Nc3
{[%clk 0:02:54]} 12... Be7 {[%clk 0:02:56.6]} 13. Be3 {[%clk 0:02:53.5]} 13...
b6 {[%clk 0:02:41.3]} 14. b3 {[%clk 0:02:52.5]} 14... Bb7 {[%clk 0:02:09.4]} 15.
c5 {[%clk 0:02:46.5]} 15... Nf8 {[%clk 0:01:59]} 16. Rac1 {[%clk 0:02:40.6]}
16... Ne6 {[%clk 0:01:57.3]} 17. Ne4 {[%clk 0:02:40.4]} 17... h6 {[%clk
0:01:47.8]} 18. b4 {[%clk 0:02:38.1]} 18... Rd8 {[%clk 0:01:40.5]} 19. Nd4
{[%clk 0:02:26]} 19... Rd5 {[%clk 0:01:22.4]} 20. f4 {[%clk 0:02:17.2]} 20...
Nxd4 {[%clk 0:00:53.3]} 21. Bxd4 {[%clk 0:02:15.2]} 21... Kd7 {[%clk 0:00:51]}
22. Bb2 {[%clk 0:02:09]} 22... Rd8 {[%clk 0:00:50.5]} 23. Nc3 {[%clk 0:01:56.6]}
23... Rxd1+ {[%clk 0:00:45]} 24. Rxd1+ {[%clk 0:01:57.5]} 24... Ke6 {[%clk
0:00:42.5]} 25. Rxd8 {[%clk 0:01:55.7]} 25... Bxd8 {[%clk 0:00:43.4]} 26. Kf2
{[%clk 0:01:50.4]} 26... Be7 {[%clk 0:00:39.2]} 27. Ba3 {[%clk 0:01:50.2]} 27...
Ba6 {[%clk 0:00:33.5]} 28. Ke3 {[%clk 0:01:39.8]} 28... Bf1 {[%clk 0:00:31]} 29.
Kf2 {[%clk 0:01:39.1]} 29... Bc4 {[%clk 0:00:30.7]} 30. Ke3 {[%clk 0:01:37.7]}
30... g6 {[%clk 0:00:24.5]} 31. g3 {[%clk 0:01:34.9]} 31... Bf1 {[%clk
0:00:23.1]} 32. h4 {[%clk 0:01:31]} 32... Kf5 {[%clk 0:00:19.2]} 33. Kf3 {[%clk
0:01:26.6]} 33... Bh3 {[%clk 0:00:15.6]} 34. b5 {[%clk 0:01:05.2]} 34... Bg4+
{[%clk 0:00:11.3]} 35. Ke3 {[%clk 0:01:02.8]} 35... Ke6 {[%clk 0:00:04.1]} 36.
bxc6 {[%clk 0:01:01.2]} 36... bxc5 {[%clk 0:00:02.2]} 37. Kd3 {[%clk 0:00:46.8]}
37... h5 {[%clk 0:00:01.4]} 38. Kc4 {[%clk 0:00:45.8]} 38... Bf5 {[%clk
0:00:01.8]} 39. Nb5 {[%clk 0:00:44.6]} 39... Bd8 {[%clk 0:00:01.9]} 40. Bxc5
{[%clk 0:00:43.5]} 40... Be4 {[%clk 0:00:02.1]} 41. Nd4# {[%clk 0:00:42.9]} 1-0

[Event "*** Titled Tuesday Blitz"]
[Site "Chess.com"]
[Date "2020.10.20"]
[Round "10"]
[White "MashaFromRussia"]
[Black "A-S-00"]
[Result "1/2-1/2"]
[WhiteElo "2398"]
[BlackElo "2302"]
[TimeControl "180+1"]
[EndTime "11:58:02 PDT"]
[Termination "Game drawn by repetition"]

1. d4 {[%clk 0:03:00.9]} 1... d5 {[%clk 0:02:59.7]} 2. c4 {[%clk 0:03:00.5]}
2... c6 {[%clk 0:03:00]} 3. Nf3 {[%clk 0:03:00.7]} 3... Nf6 {[%clk 0:03:00.2]}
4. Nc3 {[%clk 0:03:01.1]} 4... dxc4 {[%clk 0:03:00.4]} 5. e3 {[%clk 0:03:00]}
5... b5 {[%clk 0:02:59.5]} 6. a4 {[%clk 0:02:58.9]} 6... b4 {[%clk 0:02:54.8]}
7. Nb1 {[%clk 0:02:58.6]} 7... Be6 {[%clk 0:02:41.7]} 8. Qc2 {[%clk 0:02:56.9]}
8... Qd5 {[%clk 0:02:37.6]} 9. Nbd2 {[%clk 0:02:56.6]} 9... Nbd7 {[%clk
0:02:19]} 10. Bxc4 {[%clk 0:02:55.3]} 10... Qd6 {[%clk 0:02:13.9]} 11. Bxe6
{[%clk 0:02:55]} 11... Qxe6 {[%clk 0:02:13.2]} 12. Ng5 {[%clk 0:02:52.1]} 12...
Qd5 {[%clk 0:02:06.8]} 13. Nge4 {[%clk 0:02:42.5]} 13... g6 {[%clk 0:02:00.5]}
14. O-O {[%clk 0:02:41.1]} 14... Bg7 {[%clk 0:02:00.1]} 15. Nxf6+ {[%clk
0:02:38.2]} 15... Nxf6 {[%clk 0:01:59.8]} 16. Nc4 {[%clk 0:02:38.8]} 16... O-O
{[%clk 0:01:57.3]} 17. Ne5 {[%clk 0:02:38.5]} 17... Rac8 {[%clk 0:01:57.2]} 18.
Nd3 {[%clk 0:02:18.3]} 18... a5 {[%clk 0:01:39.3]} 19. b3 {[%clk 0:02:13.1]}
19... Ne4 {[%clk 0:01:37.9]} 20. Bb2 {[%clk 0:02:12.6]} 20... c5 {[%clk
0:01:32.8]} 21. f3 {[%clk 0:01:53.6]} 21... Nd6 {[%clk 0:00:57.1]} 22. Nxc5
{[%clk 0:01:48]} 22... Nb7 {[%clk 0:00:49]} 23. Rac1 {[%clk 0:01:42.7]} 23...
Nxc5 {[%clk 0:00:46.9]} 24. dxc5 {[%clk 0:01:41.4]} 24... Bxb2 {[%clk
0:00:46.7]} 25. Qxb2 {[%clk 0:01:42.3]} 25... Rxc5 {[%clk 0:00:46.7]} 26. Rxc5
{[%clk 0:01:20.5]} 26... Qxc5 {[%clk 0:00:46.5]} 27. Qd4 {[%clk 0:01:21.4]}
27... Qxd4 {[%clk 0:00:44.4]} 28. exd4 {[%clk 0:01:22.3]} 28... Rc8 {[%clk
0:00:44.2]} 29. Re1 {[%clk 0:01:22.4]} 29... e6 {[%clk 0:00:38.7]} 30. Re5
{[%clk 0:01:22.5]} 30... Rc3 {[%clk 0:00:37.9]} 31. Rxa5 {[%clk 0:01:22.2]}
31... Rxb3 {[%clk 0:00:34.6]} 32. Rb5 {[%clk 0:01:23.1]} 32... h5 {[%clk
0:00:30.4]} 33. h4 {[%clk 0:01:17.6]} 33... Kg7 {[%clk 0:00:28.8]} 34. Kf1
{[%clk 0:01:17.5]} 34... Rb2 {[%clk 0:00:25.5]} 35. a5 {[%clk 0:01:12.2]} 35...
Ra2 {[%clk 0:00:24.6]} 36. Rxb4 {[%clk 0:01:11.3]} 36... Rxa5 {[%clk 0:00:23.4]}
37. Kf2 {[%clk 0:01:11.3]} 37... Kf6 {[%clk 0:00:21.7]} 38. Rb7 {[%clk 0:01:07]}
38... Ra2+ {[%clk 0:00:21]} 39. Kg3 {[%clk 0:01:05.6]} 39... Rd2 {[%clk
0:00:20.7]} 40. Rb4 {[%clk 0:00:50.9]} 40... Ke7 {[%clk 0:00:18.5]} 41. Rb7+
{[%clk 0:00:49.6]} 41... Kf6 {[%clk 0:00:18.8]} 42. Rb4 {[%clk 0:00:49]} 42...
Kg7 {[%clk 0:00:19]} 43. Ra4 {[%clk 0:00:46.7]} 43... Kf6 {[%clk 0:00:18.9]} 44.
Rb4 {[%clk 0:00:39]} 1/2-1/2

[Event "*** Titled Tuesday Blitz"]
[Site "Chess.com"]
[Date "2020.10.20"]
[Round "10"]
[White "DinaBelenkaya"]
[Black "Astaneh"]
[Result "0-1"]
[WhiteElo "2303"]
[BlackElo "2537"]
[TimeControl "180+1"]
[EndTime "11:58:08 PDT"]
[Termination "Astaneh won by checkmate"]

1. e4 {[%clk 0:03:00.9]} 1... c6 {[%clk 0:02:58.2]} 2. d4 {[%clk 0:02:55.8]}
2... d5 {[%clk 0:02:58.5]} 3. Nc3 {[%clk 0:02:55.1]} 3... dxe4 {[%clk
0:02:58.3]} 4. Nxe4 {[%clk 0:02:56]} 4... Nd7 {[%clk 0:02:57.5]} 5. Nf3 {[%clk
0:02:55.1]} 5... Ngf6 {[%clk 0:02:57.5]} 6. Nxf6+ {[%clk 0:02:55.3]} 6... Nxf6
{[%clk 0:02:57.5]} 7. Bc4 {[%clk 0:02:51]} 7... Bf5 {[%clk 0:02:57]} 8. O-O
{[%clk 0:02:50.5]} 8... e6 {[%clk 0:02:57.1]} 9. c3 {[%clk 0:02:50.7]} 9... Bd6
{[%clk 0:02:52.5]} 10. Bg5 {[%clk 0:02:50.1]} 10... Qc7 {[%clk 0:02:51.9]} 11.
h3 {[%clk 0:02:50.2]} 11... Ne4 {[%clk 0:02:51]} 12. Be3 {[%clk 0:02:47.2]}
12... O-O-O {[%clk 0:02:35.5]} 13. b4 {[%clk 0:02:44.5]} 13... g5 {[%clk
0:02:20.4]} 14. Qb3 {[%clk 0:02:09.1]} 14... g4 {[%clk 0:02:12.6]} 15. hxg4
{[%clk 0:02:08.6]} 15... Bxg4 {[%clk 0:02:11.8]} 16. Ne5 {[%clk 0:02:09.1]}
16... Rhg8 {[%clk 0:01:34.3]} 17. Nxg4 {[%clk 0:01:35.8]} 17... Rxg4 {[%clk
0:01:33.9]} 18. Bxe6+ {[%clk 0:01:36]} 18... fxe6 {[%clk 0:01:31.8]} 19. Qxe6+
{[%clk 0:01:36.5]} 19... Qd7 {[%clk 0:01:32]} 20. Qxd7+ {[%clk 0:01:36.9]} 20...
Kxd7 {[%clk 0:01:27.3]} 21. f3 {[%clk 0:01:37.8]} 21... Rg3 {[%clk 0:01:27.6]}
22. fxe4 {[%clk 0:01:31.5]} 22... Rxe3 {[%clk 0:01:27.1]} 23. e5 {[%clk
0:00:32.8]} 23... Be7 {[%clk 0:01:25]} 24. c4 {[%clk 0:00:29.8]} 24... Rg8
{[%clk 0:01:14.1]} 25. Rae1 {[%clk 0:00:17.4]} 25... Reg3 {[%clk 0:01:06.4]} 26.
Re2 {[%clk 0:00:17.6]} 26... h5 {[%clk 0:00:52.6]} 27. Kh2 {[%clk 0:00:16.7]}
27... R3g4 {[%clk 0:00:50.1]} 28. d5 {[%clk 0:00:15.7]} 28... Bxb4 {[%clk
0:00:40.9]} 29. Rf7+ {[%clk 0:00:13.7]} 29... Ke8 {[%clk 0:00:41]} 30. Rxb7
{[%clk 0:00:13.4]} 30... Rh4+ {[%clk 0:00:41.5]} 31. Kg1 {[%clk 0:00:07.1]}
31... Bc5+ {[%clk 0:00:41.4]} 32. Rf2 {[%clk 0:00:06.9]} 32... Rf4 {[%clk
0:00:32.2]} 33. Rb8+ {[%clk 0:00:01.4]} 33... Kf7 {[%clk 0:00:32.3]} 34. e6+
{[%clk 0:00:02]} 34... Kg7 {[%clk 0:00:32.4]} 35. Rb7+ {[%clk 0:00:02.3]} 35...
Kh6 {[%clk 0:00:32.1]} 36. d6 {[%clk 0:00:01.4]} 36... Bxf2+ {[%clk 0:00:31.8]}
37. Kh2 {[%clk 0:00:00.6]} 37... Rh4# {[%clk 0:00:31.3]} 0-1

[Event "*** Titled Tuesday Blitz"]
[Site "Chess.com"]
[Date "2020.10.20"]
[Round "10"]
[White "Zhani-Z"]
[Black "Zmeeed63"]
[Result "0-1"]
[WhiteElo "2521"]
[BlackElo "2388"]
[TimeControl "180+1"]
[EndTime "11:58:09 PDT"]
[Termination "Zmeeed63 won on time"]

1. e4 {[%clk 0:02:58.8]} 1... Nc6 {[%clk 0:02:43]} 2. Nf3 {[%clk 0:02:56.7]}
2... d6 {[%clk 0:02:42.4]} 3. d4 {[%clk 0:02:55.1]} 3... Nf6 {[%clk 0:02:42.6]}
4. Nc3 {[%clk 0:02:45.5]} 4... Bg4 {[%clk 0:02:40.6]} 5. d5 {[%clk 0:02:20.7]}
5... Nb8 {[%clk 0:02:36.7]} 6. Be2 {[%clk 0:02:12.3]} 6... c6 {[%clk 0:02:36.6]}
7. O-O {[%clk 0:01:56]} 7... g6 {[%clk 0:02:36.3]} 8. a4 {[%clk 0:01:39.7]} 8...
Bg7 {[%clk 0:02:33.9]} 9. a5 {[%clk 0:01:39.1]} 9... a6 {[%clk 0:02:28.3]} 10.
Nd2 {[%clk 0:01:30]} 10... Bxe2 {[%clk 0:02:26.5]} 11. Qxe2 {[%clk 0:01:29.1]}
11... Nbd7 {[%clk 0:02:26.9]} 12. Nc4 {[%clk 0:01:27.4]} 12... O-O {[%clk
0:02:23.2]} 13. Bg5 {[%clk 0:01:24.2]} 13... cxd5 {[%clk 0:01:58.3]} 14. exd5
{[%clk 0:01:23.8]} 14... Rc8 {[%clk 0:01:56.6]} 15. Ra4 {[%clk 0:01:07.9]} 15...
Re8 {[%clk 0:01:40.6]} 16. Rd1 {[%clk 0:00:48.5]} 16... Qc7 {[%clk 0:01:29.8]}
17. h3 {[%clk 0:00:47.4]} 17... b5 {[%clk 0:00:59.8]} 18. axb6 {[%clk
0:00:44.6]} 18... Nxb6 {[%clk 0:01:00.3]} 19. Nxb6 {[%clk 0:00:44.5]} 19... Qxb6
{[%clk 0:01:01.2]} 20. Ra2 {[%clk 0:00:34.5]} 20... Nd7 {[%clk 0:00:55.8]} 21.
Be3 {[%clk 0:00:20.6]} 21... Nc5 {[%clk 0:00:42.9]} 22. Bd4 {[%clk 0:00:15.5]}
22... a5 {[%clk 0:00:17.5]} 23. Bxg7 {[%clk 0:00:15]} 23... Kxg7 {[%clk
0:00:18.4]} 24. Rd4 {[%clk 0:00:11.9]} 24... Nb3 {[%clk 0:00:12.6]} 25. Re4
{[%clk 0:00:09]} 25... Nc1 {[%clk 0:00:12.6]} 26. Qd2 {[%clk 0:00:01.5]} 26...
Nxa2 {[%clk 0:00:12.9]} 27. Rh4 {[%clk 0:00:01.2]} 27... h5 {[%clk 0:00:10.5]}
28. Rxh5 {[%clk 0:00:01.7]} 28... Rh8 {[%clk 0:00:08.2]} 29. Rxh8 {[%clk
0:00:01.1]} 29... Rxh8 {[%clk 0:00:09.1]} 0-1

[Event "*** Titled Tuesday Blitz"]
[Site "Chess.com"]
[Date "2020.10.20"]
[Round "10"]
[White "Rubinstein_Akiba"]
[Black "zajka-molotok"]
[Result "0-1"]
[WhiteElo "2374"]
[BlackElo "2493"]
[TimeControl "180+1"]
[EndTime "11:58:09 PDT"]
[Termination "zajka-molotok won on time"]

1. e4 {[%clk 0:03:00.9]} 1... d5 {[%clk 0:02:57.4]} 2. exd5 {[%clk 0:02:59.8]}
2... Qxd5 {[%clk 0:02:58.3]} 3. Nc3 {[%clk 0:02:57.5]} 3... Qd8 {[%clk 0:02:58]}
4. d4 {[%clk 0:02:57]} 4... Nf6 {[%clk 0:02:57.5]} 5. g3 {[%clk 0:02:47.1]} 5...
g6 {[%clk 0:02:55.4]} 6. Bg2 {[%clk 0:02:47]} 6... Bg7 {[%clk 0:02:55.2]} 7. Nf3
{[%clk 0:02:47.5]} 7... c6 {[%clk 0:02:53]} 8. O-O {[%clk 0:02:47.8]} 8... O-O
{[%clk 0:02:52.6]} 9. h3 {[%clk 0:02:47.7]} 9... Nbd7 {[%clk 0:02:49.9]} 10. Be3
{[%clk 0:02:47.6]} 10... Nb6 {[%clk 0:02:48.9]} 11. Ne5 {[%clk 0:02:47.4]} 11...
Nfd7 {[%clk 0:02:47]} 12. f4 {[%clk 0:02:44.3]} 12... Nxe5 {[%clk 0:02:36.4]}
13. dxe5 {[%clk 0:02:42.4]} 13... Nc4 {[%clk 0:02:32.4]} 14. Qxd8 {[%clk
0:02:17.9]} 14... Rxd8 {[%clk 0:02:33.3]} 15. Bc1 {[%clk 0:02:16.9]} 15... f6
{[%clk 0:02:14.5]} 16. b3 {[%clk 0:02:04.5]} 16... Nb6 {[%clk 0:02:05.3]} 17.
exf6 {[%clk 0:02:02.1]} 17... Bxf6 {[%clk 0:01:57.8]} 18. Bb2 {[%clk 0:01:58.7]}
18... Bf5 {[%clk 0:01:57.2]} 19. Rac1 {[%clk 0:00:41.6]} 19... Rd2 {[%clk
0:01:55.7]} 20. Rfd1 {[%clk 0:00:34.9]} 20... Rxc2 {[%clk 0:01:49.2]} 21. Rxc2
{[%clk 0:00:19.4]} 21... Bxc2 {[%clk 0:01:50.1]} 22. Rd2 {[%clk 0:00:20.3]}
22... Bf5 {[%clk 0:01:49.3]} 23. Ne4 {[%clk 0:00:18]} 23... Bxb2 {[%clk
0:01:46.5]} 24. Rxb2 {[%clk 0:00:18.9]} 24... Rd8 {[%clk 0:01:45.7]} 25. Nc5
{[%clk 0:00:18.6]} 25... Bc8 {[%clk 0:01:42.5]} 26. Kf2 {[%clk 0:00:18.2]} 26...
Kf7 {[%clk 0:01:41.3]} 27. Ke3 {[%clk 0:00:18.2]} 27... Nd5+ {[%clk 0:01:38.5]}
28. Ke2 {[%clk 0:00:18]} 28... b6 {[%clk 0:01:37.7]} 29. Ne4 {[%clk 0:00:18.2]}
29... Bf5 {[%clk 0:01:35.6]} 30. Rc2 {[%clk 0:00:11.4]} 30... c5 {[%clk
0:01:23.7]} 31. Rc1 {[%clk 0:00:11.5]} 31... Nb4 {[%clk 0:01:19.6]} 32. a3
{[%clk 0:00:11.6]} 32... Nd5 {[%clk 0:01:13.6]} 33. Nd2 {[%clk 0:00:09.2]} 33...
h5 {[%clk 0:01:09.6]} 34. Nc4 {[%clk 0:00:09.5]} 34... Nf6 {[%clk 0:01:04.7]}
35. Ne5+ {[%clk 0:00:09.7]} 35... Ke6 {[%clk 0:01:02.8]} 36. Nc6 {[%clk
0:00:10.1]} 36... Rd7 {[%clk 0:00:59.1]} 37. b4 {[%clk 0:00:10.3]} 37... cxb4
{[%clk 0:00:58.2]} 38. axb4 {[%clk 0:00:10.7]} 38... Be4 {[%clk 0:00:53.9]} 39.
Bxe4 {[%clk 0:00:09.4]} 39... Nxe4 {[%clk 0:00:54.8]} 40. Ke3 {[%clk 0:00:10]}
40... Nxg3 {[%clk 0:00:53.7]} 41. Rg1 {[%clk 0:00:07.9]} 41... Nf5+ {[%clk
0:00:53.3]} 42. Ke4 {[%clk 0:00:08.4]} 42... Kf6 {[%clk 0:00:52.2]} 43. Ne5
{[%clk 0:00:07.2]} 43... Rd4+ {[%clk 0:00:51.9]} 44. Kf3 {[%clk 0:00:07.5]}
44... Nh4+ {[%clk 0:00:48.7]} 45. Kg3 {[%clk 0:00:04.4]} 45... Rxb4 {[%clk
0:00:47.4]} 0-1